[Event "Titled Tuesday Blitz June 6 Late 2023"]
[White "Sargsyan, Anna M."]
[Black "Ai, Evan"]
[WhiteFideId "13308130"]
[BlackFideId "2094770"]
[WhiteElo "2284"]
[BlackElo "1963"]
[Result "1-0"]
[Round "7"]
[TimeControl "180+2"]
[Date "2023.06.07"]
[WhiteClock "0:01:56"]
[BlackClock "0:00:36"]
[Board "80"]

1. d4 {[%clk 0:02:54]}  Nf6 {[%clk 0:02:48]} 2. c4 {[%clk 0:02:54]}  e6 {[%clk 0:02:48]} 3. Nf3 {[%clk 0:02:53]}  b6 {[%clk 0:02:47]} 4. g3 {[%clk 0:02:53]}  Bb7 {[%clk 0:02:48]} 5. Bg2 {[%clk 0:02:54]}  Be7 {[%clk 0:02:47]} 6. O-O {[%clk 0:02:54]}  d6 {[%clk 0:02:37]} 7. Nc3 {[%clk 0:02:52]}  Ne4 {[%clk 0:02:36]} 8. d5 {[%clk 0:02:46]}  Nxc3 {[%clk 0:02:32]} 9. bxc3 {[%clk 0:02:47]}  e5 {[%clk 0:02:33]} 10. Ne1 {[%clk 0:02:47]}  Nd7 {[%clk 0:02:33]} 11. f4 {[%clk 0:02:47]}  f5 {[%clk 0:02:33]} 12. e4 {[%clk 0:02:47]}  fxe4 {[%clk 0:02:31]} 13. Bxe4 {[%clk 0:02:46]}  Nf6 {[%clk 0:02:31]} 14. Bg2 {[%clk 0:02:46]}  O-O {[%clk 0:02:25]} 15. fxe5 {[%clk 0:02:46]}  dxe5 {[%clk 0:02:26]} 16. Nf3 {[%clk 0:02:44]}  e4 {[%clk 0:02:24]} 17. Nd4 {[%clk 0:02:43]}  Bc5 {[%clk 0:02:21]} 18. Be3 {[%clk 0:02:42]}  Qe7 {[%clk 0:02:12]} 19. Qe2 {[%clk 0:02:42]}  Bc8 {[%clk 0:01:43]} 20. Kh1 {[%clk 0:02:33]}  Bg4 {[%clk 0:01:42]} 21. Qd2 {[%clk 0:02:33]}  Nd7 {[%clk 0:01:37]} 22. Bg5 {[%clk 0:02:27]}  Qd6 {[%clk 0:01:26]} 23. Bxe4 {[%clk 0:02:25]}  Ne5 {[%clk 0:01:20]} 24. Bf4 {[%clk 0:02:03]}  Nxc4 {[%clk 0:01:08]} 25. Qd3 {[%clk 0:02:03]}  Ne5 {[%clk 0:01:00]} 26. Bxh7+ {[%clk 0:02:02]}  Kh8 {[%clk 0:00:59]} 27. Qe4 {[%clk 0:02:03]}  Bxd4 {[%clk 0:00:57]} 28. cxd4 {[%clk 0:02:03]}  Bf3+ {[%clk 0:00:56]} 29. Rxf3 {[%clk 0:02:02]}  Nxf3 {[%clk 0:00:43]} 30. Bxd6 {[%clk 0:02:01]}  cxd6 {[%clk 0:00:44]} 31. Bf5 {[%clk 0:01:57]}  Ng5 {[%clk 0:00:36]} 32. Qh4+ {[%clk 0:01:56]} 1-0


[Site "https://www.chess.com"]

[Event "Titled Tuesday Blitz June 6 Late 2023"]
[White "Ozates, Tuna"]
[Black "Lalanne, Pablo"]
[WhiteFideId "6354521"]
[BlackFideId "112151"]
[WhiteElo "2151"]
[BlackElo "2120"]
[Result "1-0"]
[Round "7"]
[TimeControl "180+2"]
[Date "2023.06.07"]
[WhiteClock "0:01:42"]
[BlackClock "0:00:20"]
[Board "81"]

1. e4 {[%clk 0:03:00]}  c5 {[%clk 0:02:58]} 2. Nf3 {[%clk 0:02:59]}  d6 {[%clk 0:02:59]} 3. d4 {[%clk 0:03:00]}  cxd4 {[%clk 0:03:00]} 4. Nxd4 {[%clk 0:03:01]}  Nf6 {[%clk 0:03:00]} 5. Nc3 {[%clk 0:03:01]}  Nc6 {[%clk 0:03:01]} 6. Bc4 {[%clk 0:02:56]}  Qb6 {[%clk 0:03:00]} 7. Nb3 {[%clk 0:02:54]}  e6 {[%clk 0:03:00]} 8. O-O {[%clk 0:02:54]}  a6 {[%clk 0:03:00]} 9. Be3 {[%clk 0:02:54]}  Qc7 {[%clk 0:03:00]} 10. Be2 {[%clk 0:02:46]}  Be7 {[%clk 0:02:58]} 11. f4 {[%clk 0:02:46]}  O-O {[%clk 0:02:57]} 12. Kh1 {[%clk 0:02:47]}  Re8 {[%clk 0:02:56]} 13. Bf3 {[%clk 0:02:47]}  Rb8 {[%clk 0:02:55]} 14. a4 {[%clk 0:02:46]}  b6 {[%clk 0:02:56]} 15. g4 {[%clk 0:02:46]}  Bf8 {[%clk 0:02:54]} 16. g5 {[%clk 0:02:46]}  Nd7 {[%clk 0:02:54]} 17. Qe1 {[%clk 0:02:42]}  Nb4 {[%clk 0:02:50]} 18. Rc1 {[%clk 0:02:41]}  Nc5 {[%clk 0:02:47]} 19. Nd4 {[%clk 0:02:33]}  e5 {[%clk 0:02:25]} 20. fxe5 {[%clk 0:02:31]}  dxe5 {[%clk 0:02:23]} 21. Nf5 {[%clk 0:02:30]}  Bxf5 {[%clk 0:02:09]} 22. exf5 {[%clk 0:02:30]}  e4 {[%clk 0:02:09]} 23. Bg2 {[%clk 0:02:23]}  Bd6 {[%clk 0:02:00]} 24. Qh4 {[%clk 0:02:21]}  b5 {[%clk 0:01:42]} 25. axb5 {[%clk 0:02:20]}  axb5 {[%clk 0:01:43]} 26. g6 {[%clk 0:02:20]}  fxg6 {[%clk 0:01:35]} 27. fxg6 {[%clk 0:02:20]}  hxg6 {[%clk 0:01:35]} 28. Bxc5 {[%clk 0:02:05]}  Bxc5 {[%clk 0:01:24]} 29. Nxe4 {[%clk 0:02:04]}  Be3 {[%clk 0:01:19]} 30. Rce1 {[%clk 0:01:58]}  Nxc2 {[%clk 0:01:06]} 31. Ng5 {[%clk 0:01:46]}  Bxg5 {[%clk 0:00:20]} 32. Bd5+ {[%clk 0:01:42]} 1-0


[Site "https://www.chess.com"]

[Event "Titled Tuesday Blitz June 6 Late 2023"]
[White "Chabris, Christopher"]
[Black "Bilan, Danila"]
[WhiteFideId "2005263"]
[BlackFideId "24161918"]
[WhiteElo "2399"]
[BlackElo "2146"]
[Result "1-0"]
[Round "7"]
[TimeControl "180+2"]
[Date "2023.06.07"]
[WhiteClock "0:00:16"]
[BlackClock "0:00:01"]
[Board "82"]

1. e4 {[%clk 0:02:59]}  c6 {[%clk 0:03:00]} 2. d4 {[%clk 0:02:59]}  d5 {[%clk 0:03:00]} 3. e5 {[%clk 0:02:59]}  c5 {[%clk 0:03:00]} 4. c3 {[%clk 0:02:59]}  Nc6 {[%clk 0:02:59]} 5. Be2 {[%clk 0:03:00]}  Qb6 {[%clk 0:02:57]} 6. dxc5 {[%clk 0:02:56]}  Qxc5 {[%clk 0:02:56]} 7. b4 {[%clk 0:02:53]}  Qb6 {[%clk 0:02:45]} 8. Qxd5 {[%clk 0:02:50]}  Be6 {[%clk 0:02:32]} 9. Qe4 {[%clk 0:02:49]}  O-O-O {[%clk 0:02:28]} 10. Nf3 {[%clk 0:02:43]}  Bd5 {[%clk 0:02:20]} 11. Qf4 {[%clk 0:02:42]}  g6 {[%clk 0:02:14]} 12. Be3 {[%clk 0:02:34]}  Qc7 {[%clk 0:02:08]} 13. b5 {[%clk 0:02:01]}  Na5 {[%clk 0:01:33]} 14. O-O {[%clk 0:01:52]}  Bh6 {[%clk 0:01:21]} 15. Qg4+ {[%clk 0:01:52]}  Be6 {[%clk 0:01:20]} 16. Qg3 {[%clk 0:01:36]}  Bxe3 {[%clk 0:01:18]} 17. fxe3 {[%clk 0:01:36]}  Nh6 {[%clk 0:01:11]} 18. Nd4 {[%clk 0:01:36]}  Nf5 {[%clk 0:01:06]} 19. Nxf5 {[%clk 0:01:36]}  gxf5 {[%clk 0:01:01]} 20. Qf4 {[%clk 0:01:29]}  Rhg8 {[%clk 0:00:56]} 21. Na3 {[%clk 0:01:16]}  Kb8 {[%clk 0:00:35]} 22. b6 {[%clk 0:01:12]}  axb6 {[%clk 0:00:28]} 23. Nb5 {[%clk 0:01:09]}  Qc5 {[%clk 0:00:27]} 24. Nd4 {[%clk 0:01:05]}  Qxc3 {[%clk 0:00:19]} 25. Nxf5 {[%clk 0:00:59]}  Bxf5 {[%clk 0:00:15]} 26. e6+ {[%clk 0:00:56]}  Ka7 {[%clk 0:00:11]} 27. exf7 {[%clk 0:00:51]}  Rgf8 {[%clk 0:00:03]} 28. Qxf5 {[%clk 0:00:48]}  Qxe3+ {[%clk 0:00:03]} 29. Rf2 {[%clk 0:00:48]}  Rd2 {[%clk 0:00:03]} 30. Re1 {[%clk 0:00:43]}  Nc6 {[%clk 0:00:03]} 31. Qf3 {[%clk 0:00:37]}  Qc5 {[%clk 0:00:02]} 32. Bf1 {[%clk 0:00:19]}  Ne5 {[%clk 0:00:01]} 33. Qe3 {[%clk 0:00:16]} 1-0


[Site "https://www.chess.com"]

[Event "Titled Tuesday Blitz June 6 Late 2023"]
[White "Rodriguez Santiago, Jaime"]
[Black "Mieles Palau, Daniel"]
[WhiteFideId "3100898"]
[BlackFideId "3600467"]
[WhiteElo "2025"]
[BlackElo "2344"]
[Result "0-1"]
[Round "7"]
[TimeControl "180+2"]
[Date "2023.06.07"]
[WhiteClock "0:00:26"]
[BlackClock "0:00:51"]
[Board "86"]

1. c4 {[%clk 0:03:00]}  e6 {[%clk 0:02:50]} 2. Nf3 {[%clk 0:02:57]}  d5 {[%clk 0:02:47]} 3. g3 {[%clk 0:02:57]}  Nf6 {[%clk 0:02:46]} 4. Bg2 {[%clk 0:02:57]}  c6 {[%clk 0:02:41]} 5. O-O {[%clk 0:02:54]}  dxc4 {[%clk 0:02:41]} 6. a4 {[%clk 0:02:50]}  b5 {[%clk 0:02:32]} 7. axb5 {[%clk 0:02:47]}  cxb5 {[%clk 0:02:32]} 8. Nc3 {[%clk 0:02:39]}  b4 {[%clk 0:02:25]} 9. Ne5 {[%clk 0:02:31]}  Nd5 {[%clk 0:02:24]} 10. Nxd5 {[%clk 0:02:31]}  exd5 {[%clk 0:02:25]} 11. Nxc4 {[%clk 0:02:31]}  Nc6 {[%clk 0:02:22]} 12. Ne3 {[%clk 0:02:26]}  Be6 {[%clk 0:02:21]} 13. d3 {[%clk 0:02:05]}  Be7 {[%clk 0:02:20]} 14. Bd2 {[%clk 0:02:03]}  O-O {[%clk 0:02:18]} 15. Qa4 {[%clk 0:01:52]}  Nd4 {[%clk 0:02:15]} 16. Qd1 {[%clk 0:01:50]}  a5 {[%clk 0:02:10]} 17. b3 {[%clk 0:01:34]}  h6 {[%clk 0:02:00]} 18. Bc1 {[%clk 0:01:27]}  Nb5 {[%clk 0:01:56]} 19. Bb2 {[%clk 0:01:26]}  Bf6 {[%clk 0:01:47]} 20. d4 {[%clk 0:01:23]}  Qb6 {[%clk 0:01:23]} 21. Nxd5 {[%clk 0:01:09]}  Bxd5 {[%clk 0:01:21]} 22. Bxd5 {[%clk 0:01:09]}  Rad8 {[%clk 0:01:21]} 23. e4 {[%clk 0:01:04]}  Nxd4 {[%clk 0:01:17]} 24. Bxd4 {[%clk 0:01:00]}  Bxd4 {[%clk 0:01:18]} 25. Ra4 {[%clk 0:00:59]}  Kh8 {[%clk 0:01:12]} 26. Qf3 {[%clk 0:00:55]}  Rd6 {[%clk 0:00:59]} 27. Rc1 {[%clk 0:00:54]}  Rf6 {[%clk 0:00:57]} 28. Qg4 {[%clk 0:00:31]}  Rxf2 {[%clk 0:00:55]} 29. Kh1 {[%clk 0:00:32]}  Qf6 {[%clk 0:00:54]} 30. Rxa5 {[%clk 0:00:26]}  Rf1+ {[%clk 0:00:51]} 0-1


[Site "https://www.chess.com"]

[Event "Titled Tuesday Blitz June 6 Late 2023"]
[White "Szyszylo, Rafal"]
[Black "Graif, William"]
[WhiteFideId "1109626"]
[BlackFideId "2609835"]
[WhiteElo "1951"]
[BlackElo "2201"]
[Result "0-1"]
[Round "7"]
[TimeControl "180+2"]
[Date "2023.06.07"]
[WhiteClock "0:00:09"]
[BlackClock "0:00:24"]
[Board "95"]

1. e4 {[%clk 0:03:00]}  e5 {[%clk 0:02:53]} 2. Bc4 {[%clk 0:02:54]}  Bc5 {[%clk 0:02:51]} 3. Nc3 {[%clk 0:02:54]}  d6 {[%clk 0:02:49]} 4. d3 {[%clk 0:02:54]}  a6 {[%clk 0:02:47]} 5. a3 {[%clk 0:02:42]}  Nc6 {[%clk 0:02:46]} 6. f4 {[%clk 0:02:41]}  Nf6 {[%clk 0:02:39]} 7. f5 {[%clk 0:02:40]}  h6 {[%clk 0:02:16]} 8. Nf3 {[%clk 0:02:04]}  Ng4 {[%clk 0:01:55]} 9. Qe2 {[%clk 0:01:52]}  Bf2+ {[%clk 0:01:51]} 10. Kd1 {[%clk 0:01:48]}  Ba7 {[%clk 0:01:52]} 11. h3 {[%clk 0:01:46]}  Nf2+ {[%clk 0:01:51]} 12. Ke1 {[%clk 0:01:45]}  Nxh1 {[%clk 0:01:49]} 13. g4 {[%clk 0:01:35]}  h5 {[%clk 0:01:34]} 14. g5 {[%clk 0:01:33]}  h4 {[%clk 0:01:29]} 15. Qg2 {[%clk 0:01:25]}  Ng3 {[%clk 0:01:27]} 16. Nxh4 {[%clk 0:01:08]}  Rxh4 {[%clk 0:01:20]} 17. Qxg3 {[%clk 0:01:09]}  Rh8 {[%clk 0:01:15]} 18. Bd2 {[%clk 0:01:04]}  Bd7 {[%clk 0:01:13]} 19. h4 {[%clk 0:00:20]}  Nd4 {[%clk 0:00:50]} 20. Rc1 {[%clk 0:00:17]}  c6 {[%clk 0:00:40]} 21. Ne2 {[%clk 0:00:16]}  Qc7 {[%clk 0:00:32]} 22. Nxd4 {[%clk 0:00:14]}  Bxd4 {[%clk 0:00:32]} 23. Ke2 {[%clk 0:00:14]}  d5 {[%clk 0:00:28]} 24. exd5 {[%clk 0:00:13]}  Bxf5 {[%clk 0:00:26]} 25. dxc6 {[%clk 0:00:09]}  Qxc6 {[%clk 0:00:24]} 26. Rf1 {[%clk 0:00:09]}  Be6 {[%clk 0:00:24]} 0-1


[Site "https://www.chess.com"]

[Event "Titled Tuesday Blitz June 6 Late 2023"]
[White "Hoffmann, Asa"]
[Black "KorolDimitriy75"]
[WhiteFideId "2001470"]
[WhiteElo "2117"]
[BlackElo "2455"]
[Result "1-0"]
[Round "7"]
[TimeControl "180+2"]
[Date "2023.06.07"]
[WhiteClock "0:01:29"]
[BlackClock "0:00:01"]
[Board "97"]

1. d4 {[%clk 0:02:52]}  Nf6 {[%clk 0:02:59]} 2. Bg5 {[%clk 0:02:48]}  Ne4 {[%clk 0:02:58]} 3. Bf4 {[%clk 0:02:48]}  c5 {[%clk 0:02:58]} 4. f3 {[%clk 0:02:48]}  Nf6 {[%clk 0:02:57]} 5. dxc5 {[%clk 0:02:47]}  Qa5+ {[%clk 0:02:56]} 6. Nc3 {[%clk 0:02:46]}  Qxc5 {[%clk 0:02:56]} 7. e4 {[%clk 0:02:46]}  d6 {[%clk 0:02:53]} 8. Qd2 {[%clk 0:02:46]}  g6 {[%clk 0:02:12]} 9. Be3 {[%clk 0:02:43]}  Qa5 {[%clk 0:02:10]} 10. Nb5 {[%clk 0:02:43]}  Qxd2+ {[%clk 0:02:06]} 11. Kxd2 {[%clk 0:02:42]}  Na6 {[%clk 0:02:07]} 12. Nxa7 {[%clk 0:02:38]}  Bd7 {[%clk 0:02:01]} 13. Nb5 {[%clk 0:02:37]}  Bg7 {[%clk 0:01:55]} 14. Nc3 {[%clk 0:02:33]}  O-O {[%clk 0:01:48]} 15. Bd3 {[%clk 0:02:31]}  Rfc8 {[%clk 0:01:32]} 16. Nge2 {[%clk 0:02:30]}  Nc5 {[%clk 0:01:15]} 17. g4 {[%clk 0:02:29]}  h5 {[%clk 0:01:10]} 18. g5 {[%clk 0:02:28]}  Ne8 {[%clk 0:01:09]} 19. Nd5 {[%clk 0:02:28]}  Nxd3 {[%clk 0:00:39]} 20. Nxe7+ {[%clk 0:02:19]}  Kf8 {[%clk 0:00:38]} 21. Nxc8 {[%clk 0:02:19]}  Nxb2 {[%clk 0:00:31]} 22. Nb6 {[%clk 0:02:11]}  Rd8 {[%clk 0:00:20]} 23. Rab1 {[%clk 0:01:57]}  Be6 {[%clk 0:00:19]} 24. Bd4 {[%clk 0:01:56]}  Nc4+ {[%clk 0:00:12]} 25. Nxc4 {[%clk 0:01:53]}  Bxc4 {[%clk 0:00:13]} 26. Bxg7+ {[%clk 0:01:52]}  Nxg7 {[%clk 0:00:13]} 27. Rxb7 {[%clk 0:01:48]}  Bxa2 {[%clk 0:00:12]} 28. Ra1 {[%clk 0:01:47]}  Bc4 {[%clk 0:00:09]} 29. Nd4 {[%clk 0:01:45]}  Ne6 {[%clk 0:00:08]} 30. Nxe6+ {[%clk 0:01:40]}  Bxe6 {[%clk 0:00:08]} 31. Rba7 {[%clk 0:01:33]}  Kg7 {[%clk 0:00:07]} 32. Ra8 {[%clk 0:01:32]}  Bc8 {[%clk 0:00:02]} 33. R1a7 {[%clk 0:01:29]}  d5 {[%clk 0:00:01]} 34. e5 {[%clk 0:01:29]} 1-0


[Site "https://www.chess.com"]

[Event "Titled Tuesday Blitz June 6 Late 2023"]
[White "Krzywda, Andrzej"]
[Black "Eidelman, Gabriel"]
[WhiteFideId "1114565"]
[BlackFideId "30910544"]
[WhiteElo "2138"]
[BlackElo "2450"]
[Result "1-0"]
[Round "7"]
[TimeControl "180+2"]
[Date "2023.06.07"]
[WhiteClock "0:00:26"]
[BlackClock "0:00:03"]
[Board "101"]

1. e4 {[%clk 0:03:00]}  e6 {[%clk 0:02:54]} 2. d4 {[%clk 0:03:00]}  d5 {[%clk 0:02:55]} 3. Nc3 {[%clk 0:03:01]}  Nf6 {[%clk 0:02:53]} 4. e5 {[%clk 0:03:01]}  Nfd7 {[%clk 0:02:54]} 5. f4 {[%clk 0:03:01]}  c5 {[%clk 0:02:54]} 6. Nf3 {[%clk 0:03:02]}  Nc6 {[%clk 0:02:54]} 7. Be3 {[%clk 0:03:03]}  a6 {[%clk 0:02:51]} 8. Qd2 {[%clk 0:02:56]}  b5 {[%clk 0:02:48]} 9. Bd3 {[%clk 0:02:47]}  b4 {[%clk 0:02:43]} 10. Na4 {[%clk 0:02:45]}  Qa5 {[%clk 0:02:41]} 11. Nxc5 {[%clk 0:02:39]}  Nxc5 {[%clk 0:02:40]} 12. dxc5 {[%clk 0:02:39]}  Bxc5 {[%clk 0:02:40]} 13. O-O {[%clk 0:02:31]}  Qb6 {[%clk 0:02:31]} 14. Bxc5 {[%clk 0:02:30]}  Qxc5+ {[%clk 0:02:32]} 15. Kh1 {[%clk 0:02:31]}  a5 {[%clk 0:02:24]} 16. Qe2 {[%clk 0:02:25]}  Bd7 {[%clk 0:01:49]} 17. a3 {[%clk 0:02:10]}  Nd4 {[%clk 0:01:35]} 18. Qf2 {[%clk 0:01:59]}  bxa3 {[%clk 0:01:16]} 19. Rxa3 {[%clk 0:01:58]}  Rb8 {[%clk 0:00:53]} 20. Qxd4 {[%clk 0:01:54]}  Qxd4 {[%clk 0:00:41]} 21. Nxd4 {[%clk 0:01:55]}  Rxb2 {[%clk 0:00:41]} 22. Rxa5 {[%clk 0:01:50]}  O-O {[%clk 0:00:41]} 23. h4 {[%clk 0:01:43]}  f6 {[%clk 0:00:33]} 24. exf6 {[%clk 0:01:38]}  Rxf6 {[%clk 0:00:34]} 25. Ra7 {[%clk 0:01:36]}  Be8 {[%clk 0:00:27]} 26. Ra8 {[%clk 0:01:31]}  Kf7 {[%clk 0:00:28]} 27. h5 {[%clk 0:01:12]}  Ke7 {[%clk 0:00:18]} 28. Ra7+ {[%clk 0:01:06]}  Kf8 {[%clk 0:00:13]} 29. Re1 {[%clk 0:00:59]}  Rb6 {[%clk 0:00:10]} 30. g3 {[%clk 0:00:56]}  Bxh5 {[%clk 0:00:10]} 31. Kg2 {[%clk 0:00:50]}  h6 {[%clk 0:00:09]} 32. Rc7 {[%clk 0:00:47]}  Bf7 {[%clk 0:00:08]} 33. Rc6 {[%clk 0:00:46]}  Rxc6 {[%clk 0:00:06]} 34. Nxc6 {[%clk 0:00:46]}  g5 {[%clk 0:00:05]} 35. Ne5 {[%clk 0:00:45]}  Kg7 {[%clk 0:00:04]} 36. fxg5 {[%clk 0:00:41]}  hxg5 {[%clk 0:00:02]} 37. Rf1 {[%clk 0:00:35]}  Rxf1 {[%clk 0:00:01]} 38. Kxf1 {[%clk 0:00:36]}  Kf6 {[%clk 0:00:01]} 39. Nxf7 {[%clk 0:00:31]}  Kxf7 {[%clk 0:00:01]} 40. Kf2 {[%clk 0:00:32]}  Kf6 {[%clk 0:00:01]} 41. Ke3 {[%clk 0:00:31]}  e5 {[%clk 0:00:01]} 42. Bf1 {[%clk 0:00:32]}  e4 {[%clk 0:00:01]} 43. Bh3 {[%clk 0:00:31]}  Ke5 {[%clk 0:00:01]} 44. c3 {[%clk 0:00:31]}  Kd6 {[%clk 0:00:01]} 45. Kd4 {[%clk 0:00:30]}  Kc6 {[%clk 0:00:01]} 46. Be6 {[%clk 0:00:25]}  Kd6 {[%clk 0:00:02]} 47. Bxd5 {[%clk 0:00:26]}  e3 {[%clk 0:00:03]} 48. Bf3 {[%clk 0:00:26]}  e2 {[%clk 0:00:03]} 49. Bxe2 {[%clk 0:00:26]} 1-0


[Site "https://www.chess.com"]

[Event "Titled Tuesday Blitz June 6 Late 2023"]
[White "Pace, Christopher"]
[Black "QuiesPrecatio"]
[WhiteFideId "2610167"]
[WhiteElo "2333"]
[BlackElo "2437"]
[Result "1/2-1/2"]
[Round "7"]
[TimeControl "180+2"]
[Date "2023.06.07"]
[WhiteClock "0:00:03"]
[BlackClock "0:00:17"]
[Board "104"]

1. e4 {[%clk 0:02:57]}  c6 {[%clk 0:02:59]} 2. d4 {[%clk 0:02:53]}  d5 {[%clk 0:02:59]} 3. Nc3 {[%clk 0:02:53]}  dxe4 {[%clk 0:02:59]} 4. Nxe4 {[%clk 0:02:54]}  Bf5 {[%clk 0:03:00]} 5. Ng3 {[%clk 0:02:50]}  Bg6 {[%clk 0:03:00]} 6. N1e2 {[%clk 0:02:50]}  e6 {[%clk 0:02:57]} 7. Nf4 {[%clk 0:02:50]}  Bd6 {[%clk 0:02:57]} 8. h4 {[%clk 0:02:49]}  Qc7 {[%clk 0:02:57]} 9. Nxg6 {[%clk 0:02:25]}  hxg6 {[%clk 0:02:58]} 10. Ne4 {[%clk 0:02:25]}  Be7 {[%clk 0:02:43]} 11. g3 {[%clk 0:02:12]}  Nf6 {[%clk 0:02:40]} 12. Ng5 {[%clk 0:02:02]}  Nbd7 {[%clk 0:02:28]} 13. Bd3 {[%clk 0:01:42]}  Bd6 {[%clk 0:02:02]} 14. Qe2 {[%clk 0:01:22]}  Nb6 {[%clk 0:01:49]} 15. c4 {[%clk 0:01:20]}  c5 {[%clk 0:01:48]} 16. d5 {[%clk 0:01:20]}  e5 {[%clk 0:01:48]} 17. a4 {[%clk 0:01:18]}  O-O-O {[%clk 0:01:40]} 18. a5 {[%clk 0:01:17]}  Na8 {[%clk 0:01:40]} 19. a6 {[%clk 0:01:13]}  b6 {[%clk 0:01:40]} 20. Kf1 {[%clk 0:00:51]}  Qe7 {[%clk 0:01:38]} 21. Bd2 {[%clk 0:00:44]}  Rde8 {[%clk 0:01:34]} 22. Re1 {[%clk 0:00:24]}  Nc7 {[%clk 0:01:18]} 23. Kg2 {[%clk 0:00:24]}  Ref8 {[%clk 0:00:59]} 24. f4 {[%clk 0:00:21]}  Nd7 {[%clk 0:00:47]} 25. Bc3 {[%clk 0:00:14]}  f6 {[%clk 0:00:37]} 26. Nf3 {[%clk 0:00:15]}  Re8 {[%clk 0:00:26]} 27. Bxg6 {[%clk 0:00:14]}  e4 {[%clk 0:00:26]} 28. Nd2 {[%clk 0:00:10]}  f5 {[%clk 0:00:24]} 29. Bxf5 {[%clk 0:00:09]}  e3 {[%clk 0:00:22]} 30. Ne4 {[%clk 0:00:10]}  Kb8 {[%clk 0:00:21]} 31. Nxd6 {[%clk 0:00:10]}  Qxd6 {[%clk 0:00:22]} 32. Bxd7 {[%clk 0:00:08]}  Qxd7 {[%clk 0:00:23]} 33. Be5 {[%clk 0:00:08]}  Ka8 {[%clk 0:00:17]} 34. Qxe3 {[%clk 0:00:08]}  Nxa6 {[%clk 0:00:18]} 35. Qf3 {[%clk 0:00:07]}  Nb4 {[%clk 0:00:17]} 36. Ra1 {[%clk 0:00:06]}  Kb7 {[%clk 0:00:17]} 37. Rhe1 {[%clk 0:00:04]}  a5 {[%clk 0:00:16]} 38. Bc3 {[%clk 0:00:03]}  Nc2 {[%clk 0:00:15]} 39. Rxe8 {[%clk 0:00:02]}  Rxe8 {[%clk 0:00:16]} 40. Rc1 {[%clk 0:00:02]}  Ne3+ {[%clk 0:00:15]} 41. Kh2 {[%clk 0:00:01]}  Ng4+ {[%clk 0:00:16]} 42. Kg2 {[%clk 0:00:02]}  Ne3+ {[%clk 0:00:16]} 43. Kh2 {[%clk 0:00:03]}  Ng4+ {[%clk 0:00:17]} 44. Kg2 {[%clk 0:00:03]}  Ne3+ {[%clk 0:00:17]} 1/2-1/2


[Site "https://www.chess.com"]

[Event "Titled Tuesday Blitz June 6 Late 2023"]
[White "Matthew_Clarke"]
[Black "Dedona, Mark"]
[BlackFideId "30920256"]
[WhiteElo "2270"]
[BlackElo "2074"]
[Result "0-1"]
[Round "7"]
[TimeControl "180+2"]
[Date "2023.06.07"]
[WhiteClock "0:00:17"]
[BlackClock "0:01:52"]
[Board "105"]

1. d4 {[%clk 0:03:00]}  Nf6 {[%clk 0:02:56]} 2. c4 {[%clk 0:03:00]}  c5 {[%clk 0:02:55]} 3. d5 {[%clk 0:02:58]}  e6 {[%clk 0:02:55]} 4. Nf3 {[%clk 0:02:58]}  exd5 {[%clk 0:02:55]} 5. cxd5 {[%clk 0:02:59]}  d6 {[%clk 0:02:56]} 6. Nc3 {[%clk 0:02:57]}  g6 {[%clk 0:02:55]} 7. e4 {[%clk 0:02:58]}  a6 {[%clk 0:02:55]} 8. a4 {[%clk 0:02:57]}  Bg4 {[%clk 0:02:55]} 9. Qb3 {[%clk 0:02:23]}  Bxf3 {[%clk 0:02:53]} 10. Qxb7 {[%clk 0:02:23]}  Nbd7 {[%clk 0:02:54]} 11. gxf3 {[%clk 0:02:20]}  Bg7 {[%clk 0:02:54]} 12. Qb3 {[%clk 0:02:17]}  O-O {[%clk 0:02:53]} 13. Be2 {[%clk 0:02:13]}  Nh5 {[%clk 0:02:51]} 14. h4 {[%clk 0:01:47]}  Be5 {[%clk 0:02:24]} 15. Bh6 {[%clk 0:01:17]}  Re8 {[%clk 0:02:23]} 16. Qc2 {[%clk 0:01:17]}  Qa5 {[%clk 0:02:12]} 17. Kf1 {[%clk 0:01:06]}  Rab8 {[%clk 0:02:10]} 18. Qd2 {[%clk 0:00:56]}  Ndf6 {[%clk 0:02:00]} 19. Kg2 {[%clk 0:00:29]}  Rb3 {[%clk 0:01:57]} 20. Rhb1 {[%clk 0:00:26]}  Reb8 {[%clk 0:01:54]} 21. Bc4 {[%clk 0:00:17]}  Bxc3 {[%clk 0:01:52]} 0-1


[Site "https://www.chess.com"]